bitfinex-derivatives/quotes_SOLF0:USTF0_20241027
["timestamp","ask_amount","ask_price","bid_price","bid_amount"]
[1730020984680,11.44269191,174.09,173.99,1.1826]
[1730020984969,7.06269191,174.06,174.01,7.06269191]
[1730020985159,4.38,174.05,174.01,7.06269191]
[1730020985360,4.38,174.05,174.03,2.8762]
[1730020985769,4.38,174.05,174.04,2.8762]
[1730020986164,2.875,174.11,174.04,7.06269191]
[1730020986363,2.3774,174.14,174.06,9.93839191]
[1730020986567,7.06269191,174.11,174.06,7.06269191]
[1730020987373,7.06269191,174.11,174.07,2.8755]
[1730020988877,7.2548,174.13,174.07,2.8755]
[1730020989172,7.2548,174.13,174.08,2.8755]
[1730020989173,7.06269191,174.11,174.08,2.8755]
[1730020989475,4.38,174.1,174.07,7.06269191]
[1730020989673,4.38,174.1,174.09,2.8753]
[1730020991278,4.38,174.1,174.08,2.8755]
[1730020992071,4.38,174.1,174.06,7.06269191]
[1730020992072,4.38,174.1,174.07,2.8756]
[1730020992878,11.44269191,174.1,174.07,2.8756]
[1730020994473,9.93809191,174.09,174.04,2.8761]
[1730020995081,7.06269191,174.08,174.04,2.8761]
[1730020995280,9.93839191,174.08,174.0,1.2248]
[1730020995579,9.93839191,174.08,174.01,7.06269191]
[1730020996079,9.93839191,174.08,174.03,2.8763]
[1730020997278,7.06269191,174.08,174.05,2.876]
[1730020997583,7.06269191,174.09,174.05,2.876]
[1730020997778,7.06269191,174.08,174.05,2.876]
[1730020999373,7.06269191,174.08,174.04,2.876]
[1730020999587,4.38,174.1,174.0,1.2248]
[1730020999588,9.93849191,174.07,174.01,7.06269191]
[1730020999773,4.38,174.06,174.01,7.06269191]
[1730021000177,4.38,174.06,174.02,2.8763]
[1730021003676,7.06269191,174.09,174.06,2.8757]
[1730021003872,4.38,174.08,174.04,7.06269191]
[1730021004086,11.44269191,174.08,174.0,1.2248]
[1730021004387,11.44269191,174.08,174.04,2.8761]
[1730021006471,4.38,174.08,174.04,2.8761]
[1730021006669,7.06269191,174.07,174.04,2.8761]
[1730021010784,3.6493,174.14,174.04,7.06269191]
[1730021010989,4.38,174.13,174.06,7.06269191]
[1730021011183,7.06269191,174.11,174.06,7.06269191]
[1730021011381,2.3774,174.14,174.1,2.875]
[1730021011689,7.06269191,174.12,174.07,7.06269191]
[1730021011991,7.06269191,174.12,174.08,2.8754]
[1730021012289,7.2548,174.13,174.07,7.06269191]
[1730021012290,4.38,174.11,174.07,7.06269191]
[1730021012789,4.38,174.11,174.1,2.8752]
[1730021012982,55.84,174.15,174.08,7.06269191]
[1730021013188,4.38,174.14,174.12,2.8748]
[1730021013888,4.38,174.14,174.13,2.8747]
[1730021014382,5.2389,174.2,174.15,2.8742]
[1730021014594,7.06269191,174.18,174.15,2.8742]
[1730021014980,11.44269191,174.19,174.16,2.874]
[1730021015390,55.88,174.24,174.16,7.06269191]
[1730021015581,7.06269191,174.21,174.18,2.8738]
[1730021019983,7.06269191,174.21,174.16,7.06269191]
[1730021020180,7.06269191,174.21,174.17,2.874]
[1730021020181,9.93609191,174.21,174.17,2.874]
[1730021020387,7.06269191,174.19,174.09,4.38]
[1730021020589,1.23,174.22,174.12,7.06269191]
[1730021020590,7.06269191,174.17,174.12,7.06269191]
[1730021020794,11.44269191,174.16,174.13,2.8746]
[1730021022296,4.38,174.16,174.13,2.8746]
[1730021024501,4.38,174.16,174.12,7.06269191]
[1730021025796,4.38,174.16,174.13,2.8746]
[1730021028505,7.06269191,174.21,174.15,7.06269191]
[1730021028690,4.38,174.2,174.16,7.06269191]
[1730021028895,4.38,174.2,174.17,7.06269191]
[1730021029494,4.38,174.2,174.16,7.06269191]
[1730021029802,11.44269191,174.2,174.16,9.93669191]
[1730021030002,11.44269191,174.2,174.16,2.874]
[1730021030999,4.38,174.2,174.16,2.874]
[1730021031603,4.38,174.2,174.08,5.563]
[1730021031807,2.8738,174.19,174.14,9.93699191]
[1730021032197,9.93689191,174.17,174.12,2.8748]
[1730021032504,7.06269191,174.15,174.07,1.2318]
[1730021032694,11.44269191,174.14,174.09,7.06269191]
[1730021032893,4.38,174.13,174.09,9.93789191]
[1730021033503,4.38,174.13,174.09,7.06269191]
[1730021033709,4.38,174.13,174.1,2.8752]
[1730021034708,4.38,174.13,174.1,9.93789191]
[1730021035008,4.38,174.13,174.1,7.06269191]
[1730021036807,7.2547,174.13,174.1,7.06269191]
[1730021040404,2.3998,174.22,174.14,2.8745]
[1730021040405,2.8738,174.19,174.14,2.8745]
[1730021040600,4.38,174.18,174.14,9.93719191]
[1730021040806,4.38,174.21,174.17,7.06269191]
[1730021041109,4.38,174.21,174.19,9.93619191]
[1730021041407,4.38,174.21,174.19,7.06269191]
[1730021041600,4.38,174.21,174.2,2.8735]
[1730021042604,11.44269191,174.21,174.1,7.06269191]
[1730021042814,7.06269191,174.16,174.1,7.06269191]
[1730021043001,4.38,174.15,174.11,2.8749]
[1730021043613,4.38,174.15,174.1,7.06269191]
[1730021043814,4.38,174.15,174.12,2.8748]
[1730021044309,4.38,174.15,174.08,11.04679576]
[1730021044528,4.38,174.15,174.13,2.8745]
[1730021047011,4.38,174.15,174.04,8.166]
[1730021047218,7.2545,174.15,174.1,2.8751]
[1730021049011,2.8745,174.14,174.09,2.8752]
[1730021049213,4.38,174.15,174.05,11.04679576]
[1730021049404,4.38,174.14,174.1,11.04679576]
[1730021049605,4.38,174.13,174.1,11.04679576]
[1730021050907,4.38,174.13,174.04,3.786]
[1730021050908,4.38,174.18,174.12,11.04679576]
[1730021051108,4.38,174.18,174.13,2.4961]
[1730021051423,4.38,174.18,174.16,2.8741]
[1730021055540,2.8728,174.25,174.19,2.8735]
[1730021055707,4.36,174.24,174.17,11.04679576]
[1730021056012,4.36,174.38,174.22,11.04679576]
[1730021056212,11.04679576,174.39,174.29,11.04679576]
[1730021056610,4.36,174.38,174.29,11.04679576]
[1730021056814,2.8709,174.37,174.3,2.8717]
[1730021057217,4.36,174.38,174.29,11.04679576]
[1730021057417,2.871,174.35,174.29,13.91879576]
[1730021060117,4.36,174.38,174.29,11.04679576]
[1730021060317,4.36,174.38,174.3,2.8718]
[1730021060318,2.8709,174.36,174.3,2.8718]
[1730021061222,4.36,174.38,174.33,2.8714]
[1730021061417,4.36,174.38,174.31,11.04679576]
[1730021062526,4.36,174.37,174.33,2.8714]
[1730021064323,4.36,174.37,174.3,2.8718]
[1730021064624,4.36,174.37,174.3,13.91859576]
[1730021065220,2.871,174.36,174.3,13.91859576]
[1730021067718,4.36,174.37,174.28,11.04679576]
[1730021068124,2.8713,174.34,174.28,11.04679576]
[1730021068430,4.36,174.33,174.28,11.04679576]
[1730021068629,4.36,174.32,174.28,11.04679576]
[1730021069520,4.36,174.32,174.27,2.8722]
[1730021070529,4.36,174.35,174.3,2.8717]
[1730021070926,5.99121976,174.57,174.28,11.04679576]
[1730021070927,55.84,174.47,174.34,11.04679576]
[1730021071127,4.36,174.46,174.38,11.04679576]
[1730021071331,4.36,174.45,174.38,11.04679576]
[1730021072236,4.36,174.45,174.4,11.04679576]
[1730021073235,4.36,174.45,174.38,11.04679576]
[1730021073832,4.36,174.45,174.39,2.8702]
[1730021075737,4.36,174.45,174.4,11.04679576]
[1730021075937,4.36,174.45,174.41,2.87]
[1730021076135,55.84,174.47,174.42,11.04679576]
[1730021076337,4.36,174.46,174.42,11.04679576]
[1730021079640,4.36,174.46,174.43,2.8697]
[1730021079843,4.36,174.46,174.42,11.04679576]
[1730021081841,4.36,174.46,174.42,13.91669576]
[1730021087637,4.36,174.46,174.4,11.04679576]
[1730021089340,2.8696,174.44,174.4,11.04679576]
[1730021090141,4.36,174.46,174.4,11.04679576]
[1730021091045,2.8698,174.43,174.4,11.04679576]
[1730021091244,4.42,174.42,174.4,11.04679576]
[1730021093047,2.8704,174.4,174.35,16.39389576]
[1730021094747,4.42,174.42,174.33,11.04679576]
[1730021094945,2.8711,174.35,174.29,4.0409]
[1730021095244,4.42,174.34,174.3,11.04679576]
[1730021095749,7.2913,174.34,174.29,4.0409]
[1730021095952,7.2913,174.34,174.29,15.08769576]
[1730021096152,7.2913,174.34,174.29,11.04679576]
[1730021097049,2.8715,174.33,174.29,11.04679576]
[1730021098852,7.2912,174.34,174.29,11.04679576]
[1730021100751,7.2912,174.34,174.29,13.91879576]
[1730021100939,11.04679576,174.4,174.29,11.04679576]
[1730021101144,4.42,174.39,174.32,2.8715]
[1730021101753,2.8708,174.37,174.32,2.8715]
[1730021102546,2.8708,174.37,174.33,2.8714]
[1730021102845,4.42,174.36,174.33,11.04679576]
[1730021103046,4.42,174.35,174.33,11.04679576]
[1730021103445,4.42,174.35,174.34,2.8712]
[1730021104052,2.8704,174.4,174.34,2.8712]
[1730021104252,4.42,174.39,174.35,11.04679576]
[1730021107753,4.42,174.39,174.35,13.91779576]
[1730021108457,4.42,174.39,174.35,11.04679576]
[1730021109658,4.42,174.39,174.35,13.91779576]
[1730021110558,4.42,174.39,174.29,1.2111]
[1730021110959,4.42,174.39,174.33,11.04679576]
[1730021111758,4.42,174.39,174.35,11.04679576]
[1730021112564,4.42,174.39,174.36,2.8708]
[1730021113854,4.42,174.39,174.38,13.91729576]
[1730021115366,55.78,174.44,174.38,11.04679576]
[1730021115661,4.36,174.43,174.4,13.91689576]
[1730021116262,4.36,174.43,174.41,2.8699]
[1730021116466,4.36,174.43,174.4,11.04679576]
[1730021116869,4.36,174.43,174.4,13.91689576]
[1730021117275,4.36,174.43,174.4,11.04679576]
[1730021117968,12.21269576,174.49,174.4,11.04679576]
[1730021118170,4.36,174.48,174.4,11.04679576]
[1730021118967,2.8693,174.46,174.41,2.8699]
[1730021119471,12.21269576,174.49,174.4,11.04679576]
[1730021119472,1.1659,174.49,174.43,2.8697]
[1730021119673,4.36,174.48,174.43,2.8697]
[1730021120074,7.229,174.48,174.43,2.8697]
[1730021121778,1.1659,174.49,174.45,2.8693]
[1730021121779,4.36,174.47,174.45,2.8693]
[1730021122169,4.36,174.47,174.42,11.04679576]
[1730021122772,4.36,174.47,174.45,2.8694]
[1730021123175,1.1574,174.54,174.46,11.04679576]
[1730021123379,4.36,174.53,174.49,13.91549576]
[1730021125179,12.27159576,174.58,174.49,11.04679576]
[1730021125380,12.27159576,174.58,174.5,2.8685]
[1730021125381,7.2278,174.55,174.5,2.8685]
[1730021126779,7.2278,174.55,174.51,11.04679576]
[1730021128277,7.2278,174.55,174.51,13.91519576]
[1730021129978,7.2278,174.55,174.51,2.8684]
[1730021130178,7.2278,174.55,174.51,13.91519576]
[1730021130773,15.17019925,174.61,174.51,11.04679576]
[1730021130975,2.8675,174.57,174.53,13.91479576]
[1730021131288,4.36,174.56,174.53,13.91479576]
[1730021132380,4.36,174.56,174.51,11.04679576]
[1730021133286,2.868,174.54,174.51,11.04679576]
[1730021135878,4.36,174.56,174.51,11.04679576]
[1730021136101,4.36,174.57,174.53,11.04679576]
[1730021136483,4.36,174.57,174.54,2.8678]
[1730021137079,4.36,174.58,174.54,2.8678]
[1730021138989,4.36,174.58,174.55,11.04679576]
[1730021141690,4.36,174.58,174.55,13.91449576]
[1730021141881,4.36,174.58,174.55,11.04679576]
[1730021142090,4.36,174.6,174.55,11.04679576]
[1730021142594,7.227,174.6,174.55,13.91439576]
[1730021144295,7.227,174.6,174.59,7.04831297]
[1730021144995,4.36,174.6,174.59,7.04831297]
[1730021145990,3.6522,174.65,174.59,7.04831297]
[1730021146297,4.36,174.64,174.63,7.04831297]
[1730021147190,7.2263,174.64,174.63,7.04831297]
[1730021147489,2.8663,174.64,174.63,7.04831297]
[1730021147699,7.2263,174.64,174.63,7.04831297]
[1730021149291,4.36,174.64,174.61,7.04831297]
[1730021149492,2.8669,174.6,174.59,7.04831297]
[1730021151298,2.8668,174.61,174.59,7.04831297]
[1730021151596,2.8668,174.61,174.6,7.04831297]
[1730021152202,11.40831297,174.64,174.59,7.04831297]
[1730021152203,2.867,174.6,174.59,7.04831297]
[1730021152594,7.227,174.6,174.59,7.04831297]
[1730021159402,11.40831297,174.6,174.52,1.1585]
[1730021159608,7.04831297,174.56,174.52,7.04831297]
[1730021159805,4.36,174.55,174.52,7.04831297]
[1730021160212,2.868,174.54,174.52,7.04831297]
[1730021160612,2.868,174.54,174.5,2.8685]
[1730021160813,2.868,174.54,174.51,7.04831297]
[1730021161201,4.36,174.55,174.51,7.04831297]
[1730021161408,7.04831297,174.53,174.48,7.04831297]
[1730021161605,7.04831297,174.52,174.47,7.04831297]
[1730021161811,4.36,174.51,174.47,7.04831297]
[1730021162411,2.8686,174.5,174.47,7.04831297]
[1730021162910,4.36,174.5,174.47,7.04831297]
[1730021170110,11.40831297,174.5,174.42,1.1665]
[1730021170311,2.869,174.48,174.45,7.04831297]
[1730021172021,11.40831297,174.5,174.44,7.04831297]
[1730021172223,11.40831297,174.5,174.43,7.04831297]
[1730021172224,7.04831297,174.49,174.43,7.04831297]
[1730021172716,2.8691,174.47,174.43,7.04831297]
[1730021172916,4.36,174.46,174.43,9.91801297]
[1730021174017,4.36,174.46,174.44,7.04831297]
[1730021175422,4.36,174.46,174.45,7.04831297]
[1730021175632,4.36,174.48,174.46,2.8692]
[1730021175920,4.36,174.48,174.47,7.04831297]
[1730021177629,2.8687,174.5,174.47,7.04831297]
[1730021177830,4.36,174.5,174.49,7.04831297]
[1730021182030,4.36,174.5,174.47,9.91731297]
[1730021187328,4.36,174.5,174.48,9.91721297]
[1730021188130,4.36,174.5,174.49,2.8687]
[1730021190129,4.36,174.5,174.48,7.04831297]
[1730021190329,4.36,174.5,174.48,9.91721297]
[1730021191338,4.36,174.5,174.49,2.8687]
[1730021191735,4.36,174.5,174.49,9.91701297]
[1730021191929,4.36,174.5,174.49,7.04831297]
[1730021193125,4.36,174.5,174.49,9.91701297]
[1730021193434,2.8681,174.53,174.49,7.04831297]
[1730021193435,4.36,174.53,174.49,7.04831297]
[1730021193632,4.36,174.53,174.5,2.8686]
[1730021193835,9.91631297,174.54,174.5,2.8686]
[1730021194030,4.36,174.53,174.51,7.04831297]
[1730021200537,4.36,174.53,174.52,7.04831297]
[1730021202843,4.36,174.53,174.48,1.255]
[1730021202844,4.36,174.53,174.49,9.91701297]
[1730021203039,7.2282,174.53,174.49,9.91701297]
[1730021204238,7.2282,174.53,174.49,2.8687]
[1730021204547,7.2282,174.53,174.49,9.91701297]
[1730021205747,2.8684,174.51,174.48,7.04831297]
[1730021207143,2.8683,174.52,174.48,9.91721297]
[1730021211148,2.8683,174.52,174.49,7.04831297]
[1730021215264,4.36,174.53,174.43,4.36]
[1730021215265,11.40831297,174.53,174.43,4.36]
[1730021215468,7.04831297,174.52,174.47,7.04831297]
[1730021216063,8.28061297,174.52,174.47,7.04831297]
[1730021216262,2.8686,174.5,174.47,7.04831297]
[1730021217362,8.28061297,174.52,174.47,7.04831297]
[1730021218072,7.04831297,174.49,174.44,7.04831297]
[1730021218269,4.36,174.48,174.45,1.43483488]
[1730021218571,4.36,174.48,174.44,7.04831297]
[1730021218763,4.36,174.48,174.45,1.43484084]
[1730021218959,4.36,174.48,174.44,9.91781297]
[1730021219263,4.36,174.48,174.45,1.43483488]
[1730021219568,4.36,174.48,174.44,9.91781297]
[1730021219872,4.36,174.48,174.45,1.43483488]
[1730021220070,7.229,174.48,174.44,7.04831297]
[1730021220265,4.36,174.48,174.45,1.43484084]
[1730021220470,4.36,174.48,174.46,1.43484084]
[1730021220672,4.36,174.48,174.45,7.04831297]
[1730021220867,4.36,174.48,174.46,1.43483077]
[1730021221263,4.36,174.48,174.45,7.04831297]
[1730021221465,4.36,174.48,174.46,1.43483064]
[1730021221664,4.36,174.48,174.45,7.04831297]
[1730021223679,14.27721297,174.48,174.44,7.04831297]
[1730021223869,14.27721297,174.48,174.45,1.43485805]
[1730021224174,14.27721297,174.48,174.43,9.91801297]
[1730021224470,14.27721297,174.48,174.44,1.4348605]
[1730021224669,14.27721297,174.48,174.45,1.4348605]
[1730021224873,14.27721297,174.48,174.43,9.91801297]
[1730021225172,14.27721297,174.48,174.44,1.43485962]
[1730021225378,14.27721297,174.48,174.45,1.43485962]
[1730021225569,14.27721297,174.48,174.44,2.8695]
[1730021225762,14.27721297,174.48,174.45,1.43486086]
[1730021225966,2.8692,174.47,174.43,7.04831297]
[1730021226161,2.8692,174.47,174.44,1.43490265]
[1730021226362,7.04831297,174.47,174.45,1.43490265]
[1730021226562,7.04831297,174.47,174.42,2.8698]
[1730021226762,7.04831297,174.47,174.43,1.43490306]
[1730021226962,9.91741297,174.47,174.44,1.43490306]
[1730021227166,7.04831297,174.47,174.45,1.43490306]
[1730021227366,7.04831297,174.47,174.41,9.91821297]
[1730021227567,7.04831297,174.47,174.42,1.43495095]
[1730021227874,2.8693,174.46,174.43,1.43495095]
[1730021228070,2.8693,174.46,174.44,1.43495095]
[1730021228375,2.8693,174.46,174.41,9.91821297]
[1730021228568,2.8693,174.46,174.42,4.30499445]
[1730021228868,2.8693,174.46,174.43,1.43509445]
[1730021229075,2.8693,174.46,174.42,2.8699]
[1730021229276,9.91761297,174.46,174.43,1.43512403]
[1730021229477,9.91761297,174.46,174.42,2.8699]
[1730021229670,9.91761297,174.46,174.43,1.43512403]
[1730021229871,9.91761297,174.46,174.42,2.8699]
[1730021230171,9.91761297,174.46,174.43,1.43512403]
[1730021230477,9.91761297,174.46,174.42,2.8699]
[1730021230867,9.91761297,174.46,174.43,1.43512403]
[1730021231070,9.91761297,174.46,174.42,2.8699]
[1730021231273,9.91761297,174.46,174.43,1.43512403]
[1730021231473,9.91761297,174.46,174.42,2.8699]
[1730021231670,9.91761297,174.46,174.43,1.43512403]
[1730021231878,9.91761297,174.46,174.42,2.8699]
[1730021232072,9.91761297,174.46,174.43,1.43514032]
[1730021232370,9.91761297,174.46,174.42,2.8699]
[1730021232574,9.91761297,174.46,174.43,2.8697]
[1730021232983,9.91761297,174.46,174.41,7.04831297]
[1730021233171,9.91761297,174.46,174.42,4.30496794]
[1730021233372,9.91761297,174.46,174.42,2.8698]
[1730021234178,7.04831297,174.45,174.42,2.8698]
[1730021234377,4.36,174.44,174.42,2.8698]
[1730021242684,2.495,174.52,174.43,7.04831297]
[1730021242882,2.495,174.52,174.38,4.36]
[1730021242883,4.36,174.51,174.48,7.04831297]
[1730021243084,4.36,174.51,174.5,7.04831297]
[1730021243385,4.36,174.51,174.5,9.91691297]
[1730021246081,9.91591297,174.56,174.5,7.04831297]
[1730021246082,7.04831297,174.56,174.5,7.04831297]
[1730021246286,4.36,174.55,174.52,7.04831297]
[1730021246688,4.36,174.55,174.51,2.8683]
[1730021246889,4.36,174.55,174.46,1.196]
[1730021246890,7.04831297,174.52,174.48,7.04831297]
[1730021247189,7.04831297,174.52,174.47,7.04831297]
[1730021247190,4.36,174.51,174.47,7.04831297]
[1730021248288,4.36,174.51,174.47,9.91741297]
[1730021248485,4.36,174.51,174.47,7.04831297]
[1730021249088,7.04831297,174.5,174.45,7.04831297]
[1730021249394,7.04831297,174.5,174.46,1.43478088]
[1730021249591,7.04831297,174.5,174.46,2.8692]
[1730021249890,7.04831297,174.5,174.45,7.04831297]
[1730021250793,7.04831297,174.5,174.45,9.91771297]
[1730021250990,7.04831297,174.48,174.4,1.234]
[1730021251202,4.36,174.47,174.42,7.04831297]
[1730021251491,11.40831297,174.47,174.43,4.30443438]
[1730021251691,11.40831297,174.47,174.44,1.43483438]
[1730021251888,7.04831297,174.46,174.41,7.04831297]
[1730021252089,7.04831297,174.46,174.42,1.43494709]
[1730021252291,7.04831297,174.46,174.43,1.43494709]
[1730021252595,7.04831297,174.46,174.41,7.04831297]
[1730021252789,9.91761297,174.46,174.42,1.43495081]
[1730021253091,9.91761297,174.46,174.43,1.43495081]
[1730021253293,9.91761297,174.46,174.41,9.91821297]
[1730021253505,7.04831297,174.46,174.39,1.2702]
[1730021253688,7.04831297,174.44,174.4,1.4349972]
[1730021253996,7.04831297,174.44,174.33,1.2775]
[1730021253997,7.04831297,174.42,174.41,1.4349972]
[1730021254190,11.40831297,174.42,174.41,1.4349972]
[1730021254496,11.40831297,174.42,174.37,7.04831297]
[1730021254686,11.40831297,174.42,174.38,1.43512865]
[1730021254987,11.40831297,174.42,174.37,7.04831297]
[1730021254988,4.36,174.42,174.39,11.35374162]
[1730021255193,4.36,174.42,174.4,1.43512865]
[1730021255388,4.36,174.42,174.41,1.43512865]
[1730021255987,4.36,174.42,174.41,8.48344162]
[1730021256384,4.36,174.43,174.42,2.8698]
[1730021256594,4.36,174.43,174.42,11.35318279]
[1730021256999,4.36,174.43,174.42,9.91811297]
[1730021257197,4.36,174.43,174.42,11.35317361]
[1730021257696,8.20591297,174.49,174.44,2.8695]
[1730021257897,4.36,174.48,174.44,9.91781297]
[1730021258886,7.04831297,174.47,174.43,7.04831297]
[1730021259089,7.04831297,174.47,174.42,7.04831297]
[1730021261493,9.91751297,174.47,174.42,7.04831297]
[1730021262703,9.91751297,174.47,174.42,9.91811297]
[1730021264703,9.91751297,174.47,174.42,7.04831297]
[1730021265001,9.91751297,174.47,174.43,2.8697]
[1730021266608,4.36,174.48,174.39,7.04831297]
[1730021266609,7.04831297,174.44,174.39,7.04831297]
[1730021266807,4.34,174.43,174.4,1.43511139]
[1730021266994,4.34,174.43,174.41,1.43511139]
[1730021267198,4.34,174.43,174.39,7.04831297]
[1730021267495,4.34,174.43,174.4,1.43511339]
[1730021267702,4.34,174.43,174.41,1.43511339]
[1730021267911,4.34,174.43,174.4,2.8702]
[1730021268606,4.34,174.43,174.41,1.4351206]
[1730021268906,4.34,174.43,174.4,2.8702]
[1730021269204,4.34,174.43,174.41,1.43512184]
[1730021269408,4.34,174.43,174.4,2.8702]
[1730021269708,4.34,174.43,174.41,1.43512184]
[1730021270011,4.34,174.43,174.4,2.8702]
[1730021270198,4.34,174.43,174.41,1.4351206]
[1730021270394,4.34,174.43,174.4,2.8702]
[1730021270609,4.34,174.43,174.41,8.4834333]
[1730021270905,4.34,174.43,174.41,7.04831297]
[1730021272609,4.34,174.43,174.4,2.8702]
[1730021272811,4.34,174.43,174.41,1.43512033]
[1730021273108,4.34,174.43,174.4,2.8702]
[1730021273306,4.34,174.43,174.41,1.43512017]
[1730021273511,4.34,174.43,174.4,2.8702]
[1730021273802,11.38831297,174.43,174.41,1.43512031]
[1730021274000,7.04831297,174.42,174.37,2.8706]
[1730021274207,7.04831297,174.42,174.38,1.43523108]
[1730021274409,9.91831297,174.42,174.39,1.43523108]
[1730021274703,9.91831297,174.42,174.4,1.43522406]
[1730021274908,9.91831297,174.42,174.38,2.8705]
[1730021275105,9.91831297,174.42,174.39,1.43524718]
[1730021275409,9.91831297,174.42,174.4,1.43523976]
[1730021275714,9.91831297,174.42,174.38,2.8705]
[1730021275906,9.91831297,174.42,174.39,1.43523852]
[1730021276209,9.91831297,174.42,174.4,1.43523852]
[1730021276403,9.91831297,174.42,174.38,9.91881297]
[1730021276707,9.91831297,174.42,174.39,1.43522836]
[1730021276896,9.91831297,174.42,174.4,1.43522836]
[1730021277096,2.8694,174.46,174.4,7.04831297]
[1730021277310,4.36,174.45,174.41,1.43520668]
[1730021277498,4.36,174.45,174.41,2.8699]
[1730021277897,4.36,174.45,174.41,9.91821297]
[1730021278302,7.2294,174.45,174.41,9.91821297]
[1730021280605,7.2294,174.45,174.41,7.04831297]
[1730021280807,9.91741297,174.47,174.43,9.91801297]
[1730021281004,4.34,174.46,174.43,9.91801297]
[1730021284113,2.8695,174.45,174.41,2.8699]
[1730021284310,7.04831297,174.44,174.42,1.435115]
[1730021284509,7.04831297,174.44,174.41,2.8699]
[1730021284819,7.04831297,174.44,174.42,1.43511491]
[1730021285115,7.04831297,174.44,174.41,2.8699]
[1730021285316,7.04831297,174.44,174.42,1.43516876]
[1730021285512,7.04831297,174.44,174.41,2.8699]
[1730021285816,14.25761297,174.46,174.42,1.43516876]
[1730021286011,14.25761297,174.46,174.41,9.91821297]
[1730021286210,7.2093,174.46,174.42,4.30493456]
[1730021286412,7.2093,174.46,174.42,2.8698]
[1730021286811,4.34,174.46,174.43,4.30482453]
[1730021287008,4.34,174.46,174.43,7.04831297]
[1730021287706,7.04831297,174.51,174.45,7.04831297]
[1730021287911,4.34,174.5,174.45,7.04831297]
[1730021288112,4.34,174.5,174.33,1.2775]
[1730021288113,4.34,174.49,174.48,7.04831297]
[1730021289213,4.34,174.49,174.48,9.91721297]
[1730021290415,4.34,174.49,174.47,2.869]
[1730021290718,4.34,174.49,174.47,9.91731297]
[1730021291120,4.34,174.49,174.4,1.2582]
[1730021291317,7.04831297,174.48,174.44,2.8695]
[1730021291513,7.04831297,174.48,174.41,1.43500856]
[1730021291514,7.04831297,174.46,174.4,1.2582]
[1730021291817,4.34,174.45,174.41,8.48341847]
[1730021292216,4.34,174.45,174.42,1.43520728]
[1730021292418,4.34,174.45,174.41,7.04831297]
[1730021292612,4.34,174.45,174.42,1.43520728]
[1730021292812,4.34,174.45,174.41,7.04831297]
[1730021293009,4.34,174.45,174.42,1.43520715]
[1730021293209,4.34,174.45,174.41,7.04831297]
[1730021293414,4.34,174.45,174.42,4.30510701]
[1730021293611,4.34,174.45,174.42,2.8699]
[1730021293916,7.2094,174.45,174.41,9.91821297]
[1730021294418,4.34,174.45,174.41,7.04831297]
[1730021294619,4.34,174.45,174.42,4.30510825]
[1730021294820,4.34,174.45,174.42,2.8699]
[1730021297921,7.04831297,174.43,174.31,2.4872]
[1730021298125,2.8699,174.42,174.38,2.8705]
[1730021298325,4.34,174.41,174.39,1.43526606]
[1730021298527,4.34,174.41,174.38,2.8705]
[1730021298726,4.34,174.41,174.39,1.43535601]
[1730021298927,4.34,174.41,174.38,2.8705]
[1730021299116,4.34,174.41,174.39,1.43539056]
[1730021299319,4.34,174.41,174.38,2.8705]
[1730021299518,4.34,174.41,174.39,1.43536191]
[1730021299727,4.34,174.41,174.37,7.04831297]
[1730021299922,4.34,174.41,174.38,1.43537984]
[1730021300129,7.04831297,174.39,174.34,7.04831297]
[1730021300329,7.04831297,174.39,174.35,1.43554525]
[1730021300533,2.8706,174.38,174.36,1.43554525]
[1730021300724,4.34,174.37,174.34,7.04831297]
[1730021300929,4.34,174.37,174.35,1.43554521]
[1730021301118,4.34,174.37,174.34,7.04831297]
[1730021301327,4.34,174.37,174.35,1.43557073]
[1730021301519,4.34,174.37,174.34,7.04831297]